bitfinex-derivatives/quotes_BNBF0:USTF0_20250603
["timestamp","ask_amount","ask_price","bid_price","bid_amount"]
[1748978531261,1.12424439,665.28,665.18,0.47557821]
[1748978531262,0.9800646,665.26,665.18,0.47557821]
[1748978531457,0.9800646,665.25,665.18,0.47557821]
[1748978531655,0.9800646,665.24,665.18,0.47557821]
[1748978531863,0.9800646,665.23,665.18,0.47557821]
[1748978532163,0.9800646,665.22,665.18,0.47557821]
[1748978532359,0.9800646,665.21,665.18,0.47557821]
[1748978532558,1.12424439,665.28,665.18,0.47557821]
[1748978532559,0.9800646,665.2,665.18,0.47557821]
[1748978532762,0.9800646,665.19,665.18,0.47557821]
[1748978533267,0.9800646,665.19,664.95,0.30077449]
[1748978533560,0.9800646,665.18,664.95,0.30077449]
[1748978533764,0.9800646,665.17,664.95,0.30077449]
[1748978533964,0.9800646,665.16,664.95,0.30077449]
[1748978534159,0.75656466,665.15,664.95,0.30077449]
[1748978534362,1.12424439,665.26,664.95,0.30077449]
[1748978535460,2.2487436,665.48,664.95,0.30077449]
[1748978535461,1.12424439,665.27,664.95,0.30077449]
[1748978536062,1.12424439,665.28,664.95,0.30077449]
[1748978536959,1.12424439,665.27,664.95,0.30077449]
[1748978537563,1.12396348,665.27,664.95,0.30077449]
[1748978538968,1.12396348,665.26,664.95,0.30077449]
[1748978539165,1.12396348,665.28,664.95,0.30077449]
[1748978539774,1.12396348,665.29,664.95,0.30077449]
[1748978541572,1.12388236,665.29,664.95,0.30077449]
[1748978544077,1.12388236,665.28,664.95,0.30077449]
[1748978544371,1.12388236,665.29,664.95,0.30077449]
[1748978545679,1.12385464,665.29,664.95,0.30077449]
[1748978547082,1.12385464,665.31,664.95,0.30077449]
[1748978549281,1.12386469,665.31,664.95,0.30077449]
[1748978549678,1.12387684,665.31,664.95,0.30077449]
[1748978550477,1.12387684,665.3,664.95,0.30077449]
[1748978553577,1.49790642,665.43,664.95,0.30077449]
[1748978553780,1.12396509,665.3,664.95,0.30077449]
[1748978554884,1.49790642,665.42,664.95,0.30077449]
[1748978554885,1.12396509,665.29,664.95,0.30077449]
[1748978556986,3.747906,666.06,664.95,0.30077449]
[1748978556987,1.12396509,665.26,664.95,0.30077449]
[1748978557681,1.12410614,665.26,664.95,0.30077449]
[1748978558787,1.12410614,665.27,664.95,0.30077449]
[1748978558988,1.12410614,665.28,664.95,0.30077449]
[1748978559488,1.12410614,665.27,664.95,0.30077449]
[1748978560088,1.12410614,665.28,664.95,0.30077449]
[1748978560284,1.12410614,665.29,664.95,0.30077449]
[1748978560489,1.12410614,665.28,664.95,0.30077449]
[1748978561289,1.12410614,665.29,664.95,0.30077449]
[1748978561588,1.12410614,665.28,664.95,0.30077449]
[1748978561889,1.49790642,665.4,664.95,0.30077449]
[1748978561890,1.12410614,665.29,664.95,0.30077449]
[1748978563288,1.12410614,665.28,664.95,0.30077449]
[1748978563791,3.747906,665.98,664.95,0.30077449]
[1748978563792,1.12410614,665.29,664.95,0.30077449]
[1748978564291,3.747906,665.99,664.95,0.30077449]
[1748978564292,1.12410614,665.27,664.95,0.30077449]
[1748978565493,1.49790642,665.39,664.95,0.30077449]
[1748978565692,1.12451895,665.27,664.95,0.30077449]
[1748978567394,1.12451895,665.26,664.95,0.30077449]
[1748978569094,1.12451895,665.27,664.95,0.30077449]
[1748978569488,1.49790642,665.39,664.95,0.30077449]
[1748978569692,1.12490316,665.34,664.95,0.30077449]
[1748978569887,1.12490316,665.36,664.95,0.30077449]
[1748978570295,1.12490316,665.35,664.95,0.30077449]
[1748978570494,5.2470684,666.56,664.95,0.30077449]
[1748978570495,1.12490316,665.36,664.95,0.30077449]
[1748978570797,1.12490316,665.37,664.95,0.30077449]
[1748978571594,1.12490316,665.36,664.95,0.30077449]
[1748978575695,1.12490316,665.35,664.95,0.30077449]
[1748978575900,1.49790642,665.51,664.95,0.30077449]
[1748978575901,1.12490316,665.36,664.95,0.30077449]
[1748978576696,1.49790642,665.51,664.95,0.30077449]
[1748978576697,1.12490316,665.35,664.95,0.30077449]
[1748978577501,1.49790642,665.51,664.95,0.30077449]
[1748978577697,1.1255025,665.35,664.95,0.30077449]
[1748978579501,1.1255025,665.32,664.95,0.30077449]
[1748978580402,1.1255025,665.31,664.95,0.30077449]
[1748978580997,1.1254118,665.31,664.95,0.30077449]
[1748978581701,1.49790642,665.44,664.95,0.30077449]
[1748978581903,1.1254118,665.32,664.95,0.30077449]
[1748978582703,1.1254118,665.31,664.95,0.30077449]
[1748978583202,1.1254118,665.32,664.95,0.30077449]
[1748978583504,1.1254118,665.31,664.95,0.30077449]
[1748978584098,3.747906,666.03,664.95,0.30077449]
[1748978584099,1.1254118,665.29,664.95,0.30077449]
[1748978584304,1.1253516,665.29,664.95,0.30077449]
[1748978587207,1.1253516,665.3,664.95,0.30077449]
[1748978588106,1.49790642,665.4,664.95,0.30077449]
[1748978588305,1.12522739,665.3,664.95,0.30077449]
[1748978591311,1.12522739,665.31,664.95,0.30077449]
[1748978592112,1.49790642,665.44,664.95,0.30077449]
[1748978592313,1.12507461,665.37,664.95,0.30077449]
[1748978593213,1.49790642,665.5,664.95,0.30077449]
[1748978593214,1.12507461,665.38,664.95,0.30077449]
[1748978593516,1.12507461,665.44,664.95,0.30077449]
[1748978594013,1.12507461,665.47,664.95,0.30077449]
[1748978594312,1.12507461,665.48,664.95,0.30077449]
[1748978594513,1.12507461,665.47,664.95,0.30077449]
[1748978595012,1.12507461,665.45,664.95,0.30077449]
[1748978595215,1.12507461,665.46,664.95,0.30077449]
[1748978595413,1.12507461,665.47,664.95,0.30077449]
[1748978595713,3.747906,666.31,664.95,0.30077449]
[1748978595714,1.12507461,665.45,664.95,0.30077449]
[1748978596011,1.12447108,665.46,664.95,0.30077449]
[1748978598438,1.12447108,665.49,664.95,0.30077449]
[1748978599115,1.12447108,665.5,664.95,0.30077449]
[1748978599310,1.12447108,665.51,664.95,0.30077449]
[1748978599816,1.49790642,665.66,664.95,0.30077449]
[1748978600015,1.12392759,665.51,664.95,0.30077449]
[1748978600216,1.12392759,665.52,664.95,0.30077449]
[1748978600918,1.12392759,665.51,664.95,0.30077449]
[1748978601314,1.12392759,665.52,664.95,0.30077449]
[1748978601916,1.12392759,665.54,664.95,0.30077449]
[1748978603214,1.12392759,665.52,664.95,0.30077449]
[1748978604219,1.12392759,665.53,664.95,0.30077449]
[1748978606815,1.12392759,665.55,664.95,0.30077449]
[1748978607614,1.12392759,665.56,664.95,0.30077449]
[1748978607814,1.49790642,665.71,664.95,0.30077449]
[1748978608116,1.12312991,665.55,664.95,0.30077449]
[1748978608317,1.12312991,665.56,664.95,0.30077449]
[1748978608617,1.12312991,665.55,664.95,0.30077449]
[1748978609117,1.12312991,665.56,664.95,0.30077449]
[1748978609515,1.12312991,665.55,664.95,0.30077449]
[1748978611016,1.12312991,665.54,664.95,0.30077449]
[1748978611615,1.12312991,665.55,664.95,0.30077449]
[1748978611818,1.49790642,665.7,664.95,0.30077449]
[1748978612118,1.12292311,665.54,664.95,0.30077449]
[1748978612619,1.12292311,665.53,664.95,0.30077449]
[1748978613314,1.12292311,665.54,664.95,0.30077449]
[1748978616021,1.12283875,665.54,664.95,0.30077449]
[1748978616621,3.747906,666.35,664.95,0.30077449]
[1748978616622,1.12283875,665.52,664.95,0.30077449]
[1748978616922,1.12283875,665.51,664.95,0.30077449]
[1748978618118,5.2470684,666.45,664.95,0.30077449]
[1748978618119,1.12283875,665.5,664.95,0.30077449]
[1748978619420,1.12283875,665.52,664.95,0.30077449]
[1748978619922,1.12292499,665.52,664.95,0.30077449]
[1748978620621,1.49790642,665.64,664.95,0.30077449]
[1748978620622,1.12292499,665.51,664.95,0.30077449]
[1748978623925,1.12292499,665.5,664.95,0.30077449]
[1748978625423,1.12292499,665.49,664.95,0.30077449]
[1748978626028,1.12292499,665.5,664.95,0.30077449]
[1748978626724,1.12292499,665.49,664.95,0.30077449]
[1748978626931,1.12292499,665.48,664.95,0.30077449]
[1748978627730,1.49790642,665.6,664.95,0.30077449]
[1748978628030,1.12340883,665.48,664.95,0.30077449]
[1748978628531,1.12340883,665.47,664.95,0.30077449]
[1748978629024,1.12340883,665.46,664.96,0.47560482]
[1748978629228,1.12340883,665.45,664.97,0.30076544]
[1748978630533,1.12340883,665.44,664.97,0.30076544]
[1748978631835,1.12379764,665.44,664.97,0.30076544]
[1748978633040,1.12379764,665.45,664.97,0.30076544]
[1748978635737,1.49790642,665.58,664.97,0.30076544]
[1748978635942,1.12400744,665.45,664.97,0.30076544]
[1748978637344,1.12400744,665.44,664.97,0.30076544]
[1748978639551,1.12400744,665.42,664.97,0.30076544]
[1748978639745,1.12426852,665.42,664.97,0.30076544]
[1748978639946,1.12426852,665.43,664.97,0.30076544]
[1748978640143,1.12426852,665.42,664.97,0.30076544]
[1748978642448,1.49790642,665.54,664.97,0.30076544]
[1748978643956,1.12441404,665.4,664.97,0.30076544]
[1748978644855,1.49790642,665.51,664.97,0.30076544]
[1748978645564,2.2487436,665.62,664.97,0.30076544]
[1748978647763,1.12476779,665.39,664.97,0.30076544]
[1748978648766,1.12476779,665.38,664.97,0.30076544]
[1748978650665,1.12476779,665.37,664.97,0.30076544]
[1748978652466,1.49969039,665.47,664.97,0.30076544]
[1748978652665,1.12546925,665.37,664.97,0.30076544]
[1748978655870,1.12546925,665.36,664.97,0.30076544]
[1748978657067,1.49969039,665.47,664.97,0.30076544]
[1748978657264,5.2470684,666.23,664.97,0.30076544]
[1748978657265,1.12549656,665.35,664.97,0.30076544]
[1748978657667,3.747906,666.0,664.97,0.30076544]
[1748978657668,1.12549656,665.36,664.97,0.30076544]
[1748978657969,5.2470684,666.23,664.97,0.30076544]
[1748978657970,1.12549656,665.35,664.97,0.30076544]
[1748978658166,1.12549656,665.36,664.97,0.30076544]
[1748978658769,1.12549656,665.35,664.97,0.30076544]
[1748978659470,5.2470684,666.22,664.97,0.30076544]
[1748978659471,1.12549656,665.36,664.97,0.30076544]
[1748978660271,1.12549656,665.37,664.97,0.30076544]
[1748978660972,1.12549656,665.36,664.97,0.30076544]
[1748978661172,1.49969039,665.48,664.97,0.30076544]
[1748978661472,1.12540915,665.36,664.97,0.30076544]
[1748978661872,1.12540915,665.37,664.97,0.30076544]
[1748978662274,1.12540915,665.38,664.97,0.30076544]
[1748978662671,3.747906,666.12,664.97,0.30076544]
[1748978662672,1.12540915,665.4,664.97,0.30076544]
[1748978663674,1.12540915,665.38,664.97,0.30076544]
[1748978663869,1.12540915,665.39,664.97,0.30076544]
[1748978664467,1.49969039,665.53,664.97,0.30076544]
[1748978664672,1.12533962,665.4,664.97,0.30076544]
[1748978665269,1.12533642,665.4,664.97,0.30076544]
[1748978669175,1.12537265,665.39,664.97,0.30076544]
[1748978670073,1.12537265,665.38,664.97,0.30076544]
[1748978670274,1.12537265,665.39,664.97,0.30076544]
[1748978671280,1.12537265,665.38,664.97,0.30076544]
[1748978672578,1.12537265,665.37,664.97,0.30076544]
[1748978673579,1.12537265,665.36,664.97,0.30076544]
[1748978674083,1.12537265,665.41,664.97,0.30076544]
[1748978674277,1.12537265,665.4,664.97,0.30076544]
[1748978677082,1.12537265,665.41,664.97,0.30076544]
[1748978677383,1.12563008,665.44,664.97,0.30076544]
[1748978678187,1.12563008,665.45,664.97,0.30076544]
[1748978679783,1.12563008,665.44,664.97,0.30076544]
[1748978680385,3.747906,666.28,664.97,0.30076544]
[1748978680386,1.12563008,665.45,664.97,0.30076544]
[1748978680788,1.12563008,665.44,664.97,0.30076544]
[1748978681087,1.49969039,665.58,664.97,0.30076544]
[1748978681287,1.12559596,665.44,664.97,0.30076544]
[1748978683893,1.12559596,665.41,664.97,0.30076544]
[1748978685191,1.12560548,665.41,664.97,0.30076544]
[1748978685988,1.12560548,665.42,664.97,0.30076544]
[1748978686895,1.12560548,665.43,664.97,0.30076544]
[1748978687096,1.12560548,665.42,664.97,0.30076544]
[1748978689196,1.12556244,665.42,664.97,0.30076544]
[1748978690194,1.49969039,665.53,664.97,0.30076544]
[1748978690195,1.12556244,665.41,664.97,0.30076544]
[1748978692996,1.49969039,665.53,664.97,0.30076544]
[1748978693201,1.12548548,665.41,664.97,0.30076544]
[1748978695906,1.12548548,665.4,664.97,0.30076544]
[1748978697101,1.12542891,665.4,664.97,0.30076544]
[1748978698200,1.12542891,665.46,664.97,0.30076544]
[1748978700805,1.12539556,665.46,664.97,0.30076544]
[1748978703713,1.49969039,665.61,664.97,0.30076544]
[1748978704009,1.12538926,665.45,664.97,0.30076544]
[1748978706510,1.12538926,665.41,664.97,0.30076544]
[1748978707212,1.12538926,665.42,664.97,0.30076544]
[1748978707714,1.49969039,665.58,664.97,0.30076544]
[1748978708008,1.12548912,665.41,664.97,0.30076544]
[1748978708213,1.12548912,665.39,664.97,0.30076544]
[1748978708408,1.49969039,665.53,664.97,0.30076544]
[1748978709106,2.2487436,665.67,664.97,0.30076544]
[1748978709107,3.747906,666.25,664.97,0.30076544]
[1748978710013,2.7726824,677.0,664.97,0.30076544]
[1748978710213,0.29985007,667.0,664.97,0.30076544]
[1748978713519,1.12550781,665.38,664.97,0.30076544]
[1748978714717,1.12550781,665.37,664.97,0.30076544]
[1748978716424,1.12550781,665.36,664.97,0.30076544]
[1748978716721,1.12535096,665.36,664.97,0.30076544]
[1748978716921,5.25236981,666.44,664.97,0.30076544]
[1748978716922,1.12535096,665.34,664.97,0.30076544]
[1748978717515,1.12535096,665.36,664.97,0.30076544]
[1748978717919,1.12535096,665.35,664.97,0.30076544]
[1748978718716,1.12535096,665.33,664.97,0.30076544]
[1748978719315,1.12535096,665.35,664.97,0.30076544]
[1748978719518,1.50067708,665.47,664.97,0.30076544]
[1748978719519,1.12535096,665.37,664.97,0.30076544]
[1748978719721,1.12535096,665.35,664.97,0.30076544]
[1748978720824,1.12529914,665.35,664.97,0.30076544]
[1748978721623,1.12529914,665.36,664.97,0.30076544]
[1748978722925,1.12529914,665.35,664.97,0.30076544]
[1748978723122,1.12529914,665.36,664.97,0.30076544]
[1748978723825,1.12529914,665.51,664.97,0.30076544]
[1748978724028,1.12529914,665.54,664.97,0.30076544]
[1748978724929,1.1251786,665.54,664.97,0.30076544]
[1748978727927,1.1251786,665.55,664.97,0.30076544]
[1748978728132,1.1251786,665.56,664.97,0.30076544]
[1748978728530,3.75169272,666.93,664.97,0.30076544]
[1748978728531,1.1251786,665.55,664.97,0.30076544]
[1748978728931,1.12516205,665.55,664.97,0.30076544]
[1748978731132,1.12516205,665.56,664.97,0.30076544]
[1748978731333,1.12516205,665.57,664.97,0.30076544]
[1748978732936,1.12514593,665.57,664.97,0.30076544]
[1748978733736,1.12514593,665.47,664.97,0.30076544]
[1748978735540,1.12514593,665.48,664.97,0.30076544]
[1748978736834,1.50067708,665.64,664.97,0.30076544]
[1748978737034,1.12516502,665.47,664.97,0.30076544]
[1748978737939,1.12516502,665.48,664.97,0.30076544]
[1748978738439,1.12516502,665.47,664.97,0.30076544]
[1748978739441,1.12516502,665.48,664.97,0.30076544]
[1748978740843,1.12517961,665.47,664.97,0.30076544]
[1748978741436,1.12517961,665.46,664.97,0.30076544]
[1748978741637,1.12517961,665.47,664.97,0.30076544]
[1748978742237,1.12517961,665.4,664.97,0.30076544]
[1748978742437,1.12517961,665.41,664.97,0.30076544]
[1748978742639,1.12517961,665.4,664.97,0.30076544]
[1748978744137,1.12517961,665.41,664.97,0.30076544]
[1748978744942,1.12517961,665.43,664.97,0.30076544]
[1748978745339,1.12517961,665.44,664.97,0.30076544]
[1748978746145,5.25236981,666.35,664.97,0.30076544]
[1748978746146,1.12517961,665.41,664.97,0.30076544]
[1748978747246,1.12517961,665.44,664.97,0.30076544]
[1748978747940,1.12517961,665.46,664.97,0.30076544]
[1748978748944,1.12517961,665.45,664.97,0.30076544]
[1748978749143,1.12517961,665.46,664.97,0.30076544]
[1748978749445,1.12517961,665.45,664.97,0.30076544]
[1748978750440,1.12517961,665.46,664.97,0.30076544]
[1748978751446,1.12517961,665.45,664.97,0.30076544]
[1748978752045,1.12517961,665.46,664.97,0.30076544]
[1748978752745,1.12520976,665.46,664.97,0.30076544]
[1748978752945,1.50067708,665.6,664.97,0.30076544]
[1748978753142,1.12521436,665.45,664.97,0.30076544]
[1748978756045,1.12521436,665.44,664.97,0.30076544]
[1748978756852,1.12523361,665.44,664.97,0.30076544]
[1748978757247,1.12523361,665.43,664.97,0.30076544]
[1748978757451,1.12523361,665.42,664.97,0.30076544]
[1748978757852,1.12523361,665.38,664.97,0.30076544]
[1748978758048,1.12523361,665.37,664.97,0.30076544]
[1748978758252,1.12523361,665.35,664.97,0.30076544]
[1748978758548,1.12523361,665.36,664.97,0.30076544]
[1748978758754,1.12523361,665.35,664.97,0.30076544]
[1748978758955,1.12523361,665.37,664.97,0.30076544]
[1748978759650,1.12523361,665.36,664.97,0.30076544]
[1748978760749,0.980365,665.35,664.97,0.30076544]
[1748978760949,0.980365,665.34,664.97,0.30076544]
[1748978761152,0.980365,665.33,664.97,0.30076544]
[1748978761356,0.980365,665.32,664.97,0.30076544]
[1748978761656,0.980365,665.31,664.97,0.30076544]
[1748978761856,0.980365,665.3,664.97,0.30076544]
[1748978762054,0.980365,665.29,664.97,0.30076544]
[1748978762253,0.980365,665.28,664.97,0.30076544]
[1748978762451,0.980365,665.27,664.97,0.30076544]
[1748978762653,0.980365,665.26,664.97,0.30076544]
[1748978762854,0.980365,665.25,664.97,0.30076544]
[1748978763053,0.980365,665.24,664.97,0.30076544]
[1748978763251,0.980365,665.23,664.97,0.30076544]
[1748978763456,0.98093407,665.22,664.97,0.30076544]
[1748978763656,0.98093407,665.21,664.97,0.30076544]
[1748978763853,0.98093407,665.2,664.97,0.30076544]
[1748978764054,0.98093407,665.19,664.97,0.30076544]
[1748978764253,0.98093407,665.18,664.97,0.30076544]
[1748978764557,0.98093407,665.17,664.97,0.30076544]
[1748978764752,0.98093407,665.16,664.97,0.30076544]
[1748978764952,0.98093407,665.15,664.97,0.30076544]
[1748978765156,0.98093407,665.14,664.97,0.30076544]
[1748978765356,0.98093407,665.13,664.97,0.30076544]
[1748978765554,1.12527311,665.37,664.97,0.30076544]
[1748978765753,0.98069049,665.36,664.97,0.30076544]
[1748978765953,0.98069049,665.35,664.97,0.30076544]
[1748978766257,0.98069049,665.34,664.97,0.30076544]
[1748978766458,0.98069049,665.33,664.97,0.30076544]
[1748978766655,0.98069049,665.32,664.97,0.30076544]
[1748978766855,0.98069049,665.31,664.97,0.30076544]
[1748978767059,0.98069049,665.3,664.97,0.30076544]
[1748978767259,0.98069049,665.29,664.97,0.30076544]
[1748978767461,0.98164186,665.28,664.97,0.30076544]
[1748978767759,0.98164186,665.27,664.97,0.30076544]
[1748978767953,0.98164186,665.26,664.97,0.30076544]
[1748978768155,0.98164186,665.25,664.97,0.30076544]
[1748978768354,0.98164186,665.24,664.97,0.30076544]
[1748978768557,0.98164516,665.23,664.97,0.30076544]
[1748978768759,0.98164516,665.22,664.97,0.30076544]
[1748978768959,0.98164516,665.21,664.97,0.30076544]
[1748978769157,0.98164516,665.2,664.97,0.30076544]
[1748978769359,0.98164516,665.19,664.97,0.30076544]
[1748978769660,1.12515951,665.34,664.97,0.30076544]
[1748978769661,0.98164516,665.18,664.97,0.30076544]
[1748978769960,0.98164516,665.17,664.97,0.30076544]
[1748978770160,0.98164516,665.16,664.97,0.30076544]
[1748978770360,0.98164516,665.15,664.97,0.30076544]
[1748978770661,0.98164516,665.14,664.97,0.30076544]
[1748978770860,1.12515951,665.34,664.97,0.30076544]
[1748978771060,0.98187078,665.33,664.97,0.30076544]
[1748978771262,0.98187078,665.32,664.97,0.30076544]
[1748978771456,0.98186955,665.31,664.97,0.30076544]
[1748978771661,0.98186955,665.3,664.97,0.30076544]
[1748978771857,0.98186955,665.29,664.97,0.30076544]
[1748978772061,0.98186955,665.28,664.97,0.30076544]
[1748978772257,1.12512783,665.35,664.97,0.30076544]
[1748978772258,0.98186955,665.27,664.97,0.30076544]
[1748978772465,0.98186955,665.26,664.97,0.30076544]
[1748978772662,0.98186955,665.25,664.97,0.30076544]
[1748978772862,0.98186955,665.24,664.97,0.30076544]
[1748978773063,0.98186955,665.23,664.97,0.30076544]
[1748978773263,0.98186955,665.22,664.97,0.30076544]
[1748978773463,0.98186955,665.21,664.97,0.30076544]
[1748978773863,1.50067708,665.46,664.97,0.30076544]
[1748978774057,2.25101563,665.58,664.97,0.30076544]
[1748978774863,0.98186703,665.57,664.97,0.30076544]
[1748978775163,2.25101563,665.58,664.97,0.30076544]
[1748978775766,1.12512324,665.35,664.97,0.30076544]
[1748978776160,1.50016432,665.47,664.97,0.30076544]
[1748978776365,0.98186562,665.34,664.97,0.30076544]
[1748978777063,0.98186562,665.33,664.97,0.30076544]
[1748978777767,0.98186562,665.32,664.97,0.30076544]
[1748978778560,1.50016432,665.47,664.97,0.30076544]
[1748978779466,2.25101563,665.59,664.97,0.30076544]
[1748978780167,0.98186982,665.58,664.97,0.30076544]
[1748978780574,1.12512546,665.38,664.97,0.30076544]
[1748978780770,0.98186982,665.37,664.97,0.30076544]
[1748978780967,0.98186982,665.36,664.97,0.30076544]
[1748978781168,0.98186982,665.35,664.97,0.30076544]
[1748978781365,0.98186982,665.34,664.97,0.30076544]
[1748978781566,0.98183457,665.33,664.97,0.30076544]
[1748978781765,0.98183457,665.32,664.97,0.30076544]
[1748978781966,1.50016728,665.51,664.97,0.30076544]
[1748978781967,0.98183457,665.31,664.97,0.30076544]
[1748978782270,0.98183457,665.3,664.97,0.30076544]
[1748978782470,0.98183457,665.29,664.97,0.30076544]
[1748978782671,0.98183457,665.28,664.97,0.30076544]
[1748978782873,0.98183457,665.27,664.97,0.30076544]
[1748978783072,0.98183457,665.26,664.97,0.30076544]
[1748978783273,0.98183457,665.25,664.97,0.30076544]
[1748978783472,0.98183457,665.24,664.97,0.30076544]
[1748978783673,0.98183457,665.23,664.97,0.30076544]
[1748978783871,0.98183457,665.22,664.97,0.30076544]
[1748978784072,0.98183457,665.21,664.97,0.30076544]
[1748978784270,0.98183457,665.2,664.97,0.30076544]
[1748978784470,0.98183457,665.19,664.97,0.30076544]
[1748978784671,0.98183457,665.18,664.97,0.30076544]
[1748978784870,0.98183457,665.17,664.97,0.30076544]
[1748978785070,0.98183457,665.16,664.97,0.30076544]
[1748978785271,0.98183457,665.15,664.97,0.30076544]
[1748978785475,0.98183457,665.14,664.97,0.30076544]
[1748978785775,0.98183457,665.13,664.97,0.30076544]
[1748978786075,1.12514973,665.37,664.97,0.30076544]
[1748978786269,0.98205112,665.36,664.97,0.30076544]
[1748978786471,0.98205112,665.35,664.97,0.30076544]
[1748978786672,0.98205112,665.34,664.97,0.30076544]
[1748978786874,0.98205112,665.33,664.97,0.30076544]
[1748978787069,0.98205112,665.32,664.97,0.30076544]
[1748978787273,0.98205112,665.31,664.97,0.30076544]
[1748978787473,0.98205112,665.3,664.97,0.30076544]
[1748978787673,0.98205112,665.29,664.97,0.30076544]
[1748978787869,0.98205112,665.28,664.97,0.30076544]
[1748978788074,0.98205112,665.27,664.97,0.30076544]
[1748978788370,3.75169272,666.18,664.97,0.30076544]
[1748978788371,0.98205112,665.26,664.97,0.30076544]
[1748978788575,0.98205112,665.25,664.97,0.30076544]
[1748978788779,0.98205112,665.24,664.97,0.30076544]
[1748978789075,0.98205112,665.23,664.97,0.30076544]
[1748978789277,0.98205112,665.22,664.97,0.30076544]
[1748978789478,1.12514973,665.37,664.97,0.30076544]
[1748978789479,0.98205112,665.21,664.97,0.30076544]
[1748978789677,0.98268808,665.2,664.97,0.30076544]
[1748978789878,0.98268808,665.19,664.97,0.30076544]
[1748978790080,0.98268808,665.18,664.97,0.30076544]
[1748978790278,0.98268808,665.17,664.97,0.30076544]
[1748978790479,0.98268808,665.16,664.97,0.30076544]
[1748978790780,0.98268808,665.15,664.97,0.30076544]
[1748978790979,0.98268808,665.14,664.97,0.30076544]
[1748978791278,3.75169272,666.12,664.97,0.30076544]
[1748978791279,1.12497262,665.36,664.97,0.30076544]
[1748978791478,0.98267514,665.35,664.97,0.30076544]
[1748978791679,0.98267514,665.34,664.97,0.30076544]
[1748978791880,0.98267514,665.33,664.97,0.30076544]
[1748978792074,0.98267514,665.32,664.97,0.30076544]
[1748978792273,0.98267514,665.31,664.97,0.30076544]
[1748978792476,0.98267514,665.3,664.97,0.30076544]
[1748978792676,0.98267514,665.29,664.97,0.30076544]
[1748978792874,0.98267514,665.28,664.97,0.30076544]
[1748978793079,0.98267514,665.27,664.97,0.30076544]
[1748978793282,0.98267514,665.26,664.97,0.30076544]
[1748978793482,0.98267514,665.25,664.97,0.30076544]
[1748978793682,0.98461854,665.24,664.97,0.30076544]
[1748978793883,1.12493742,665.35,664.97,0.30076544]
[1748978793884,0.98461854,665.23,664.97,0.30076544]
[1748978794077,0.98461854,665.22,664.97,0.30076544]
[1748978794280,0.98461854,665.21,664.97,0.30076544]
[1748978794481,1.12493742,665.35,664.97,0.30076544]
[1748978794482,0.98461854,665.2,664.97,0.30076544]
[1748978794781,0.98461854,665.19,664.97,0.30076544]
[1748978795081,0.98461854,665.18,664.97,0.30076544]
[1748978795276,0.98461854,665.17,664.97,0.30076544]
[1748978795478,0.98461854,665.16,664.97,0.30076544]
[1748978795679,0.98461854,665.15,664.97,0.30076544]
[1748978795981,0.98461854,665.14,664.97,0.30076544]
[1748978796181,0.98461854,665.13,664.97,0.30076544]
[1748978796379,1.12493742,665.36,664.97,0.30076544]
[1748978796582,0.98570381,665.35,664.97,0.30076544]
[1748978796780,0.98570381,665.34,664.97,0.30076544]
[1748978796980,0.98570381,665.33,664.97,0.30076544]
[1748978797180,0.98570381,665.32,664.97,0.30076544]
[1748978797382,0.98570381,665.31,664.97,0.30076544]
[1748978797583,0.9856849,665.3,664.97,0.30076544]
[1748978797779,1.50016728,665.49,664.97,0.30076544]
[1748978797780,0.9856849,665.29,664.97,0.30076544]
[1748978797982,0.9856849,665.28,664.97,0.30076544]
[1748978798283,0.9856849,665.27,664.97,0.30076544]
[1748978798485,0.9856849,665.26,664.97,0.30076544]
[1748978798785,0.9856849,665.25,664.97,0.30076544]
[1748978798979,0.9856849,665.24,664.97,0.30076544]
[1748978799179,0.9856849,665.23,664.97,0.30076544]
[1748978799383,0.9856849,665.22,664.97,0.30076544]
[1748978799581,0.9856849,665.21,664.97,0.30076544]
[1748978799787,0.9856849,665.2,664.97,0.30076544]
[1748978799984,0.9856849,665.19,664.97,0.30076544]
[1748978800187,0.9856849,665.18,664.97,0.30076544]
[1748978800387,0.9856849,665.17,664.97,0.30076544]
[1748978800585,0.9856849,665.16,664.97,0.30076544]
[1748978800789,0.9856849,665.15,664.97,0.30076544]
[1748978800985,1.12492157,665.34,664.97,0.30076544]
[1748978800986,0.9856849,665.14,664.97,0.30076544]
[1748978801191,1.12492157,665.34,664.97,0.30076544]
[1748978801491,0.98476031,665.33,664.97,0.30076544]
[1748978801692,0.98476031,665.32,664.97,0.30076544]
[1748978801891,0.98476031,665.31,664.97,0.30076544]
[1748978802091,0.98476031,665.3,664.97,0.30076544]
[1748978802287,0.98476031,665.29,664.97,0.30076544]
[1748978802487,0.98476031,665.28,664.97,0.30076544]
[1748978802692,0.98476031,665.27,664.97,0.30076544]
[1748978802992,1.12497552,665.34,664.97,0.30076544]
[1748978802993,0.98476031,665.26,664.97,0.30076544]
[1748978803292,0.98476031,665.25,664.97,0.30076544]
[1748978803492,0.98476031,665.24,664.97,0.30076544]
[1748978803692,0.98476031,665.23,664.97,0.30076544]
[1748978803886,0.98476031,665.22,664.97,0.30076544]
[1748978804090,0.98476031,665.21,664.97,0.30076544]
[1748978804387,0.98476031,665.2,664.97,0.30076544]
[1748978804589,0.98476031,665.19,664.97,0.30076544]
[1748978804790,0.98476031,665.18,664.97,0.30076544]